[Event "FIDE WSTC Open 65 2025"]
[Site "Prague"]
[Date "2025.02.19"]
[Round "3.20"]
[White "Cesal, Jaroslav"]
[Black "Snape, Ian L"]
[Result "0-1"]
[Annotator "NA"]
[ECO "E62"]
[WhiteElo "2049"]
[BlackElo "2062"]
[PlyCount "74"]
[EventDate "2025.02.17"]
[EventType "team-tourn"]
[EventCountry "CZE"]
[SourceTitle "playchess.com"]
[Source "ChessBase"]
[SourceQuality "1"]
[TimeControl "40/5400+30:1800+30"]

1. d4 {[%emt 0:00:04]} g6 {[%emt 0:00:10]} 2. Nf3 {[%emt 0:00:07]} Bg7 {[%emt 0:00:07]} 3. c4 {[%emt 0:00:13]} Nf6 {[%emt 0:00:19]} 4. g3 {[%emt 0:00:12]} O-O {[%emt 0:00:33]} 5. Bg2 {[%emt 0:00:07]} d6 {[%emt 0:00:21]} 6. Nc3 {[%emt 0:00:17]} Nc6 {[%emt 0:00:07]} 7. O-O {[%emt 0:01:09]} Bg4 {[%emt 0:00:41]} 8. h3 {[%emt 0:01:56]} Bxf3 {[%emt 0:00:08]} 9. Bxf3 {[%emt 0:00:07]} Nd7 {[%emt 0:00:33]} 10. Bxc6 {[%emt 0:09:49]} bxc6 {[%emt 0:00:25]} 11. e3 {[%emt 0:05:21]} c5 {[%emt 0:04:17]} 12. b3 {[%emt 0:04:37]} e6 {[%emt 0:19:57]} 13. Bb2 {[%emt 0:02:50]} f5 {[%emt 0:02:20]} 14. Qd2 {[%emt 0:08:00]} a6 {[%emt 0:05:48]} 15. dxc5 {[%emt 0:06:14]} Nxc5 {[%emt 0:00:12]} 16. b4 {[%emt 0:02:23]} Nd7 {[%emt 0:01:23]} 17. Rad1 {[%emt 0:02:04]} Qc8 {[%emt 0:04:41]} 18. f4 {[%emt 0:10:03]} Qb7 {[%emt 0:02:48]} 19. a3 {[%emt 0:05:08]} Nb6 {[%emt 0:02:49]} 20. Qe2 {[%emt 0:04:04]} Qc6 {[%emt 0:01:01]} 21. c5 {[%emt 0:01:36]} dxc5 {[%emt 0:01:40]} 22. bxc5 {[%emt 0:00:20]} Qxc5 {[%emt 0:01:01]} 23. Rc1 {[%emt 0:00:22]} Qe7 {[%emt 0:09:20]} 24. a4 {[%emt 0:03:13]} Qb4 {[%emt 0:05:14]} 25. Nd1 {[%emt 0:03:33]} Bxb2 {[%emt 0:01:42]} 26. Nxb2 {[%emt 0:01:13]} Nd5 {[%emt 0:02:01]} 27. Rc6 {[%emt 0:01:52]} Rfe8 {[%emt 0:10:40]} 28. Rd1 {[%emt 0:05:12]} Rab8 {[%emt 0:02:54]} 29. Rd2 {[%emt 0:03:58]} a5 {[%emt 0:02:36]} 30. Rc4 {[%emt 0:02:38]} Qb3 {[%emt 0:01:08]} 31. Nd1 {[%emt 0:01:10]} Rb4 {[%emt 0:01:21]} 32. Rxb4 {[%emt 0:00:37]} Qxb4 {[%emt 0:00:31]} 33. Rd4 {[%emt 0:00:23]} Qb3 {[%emt 0:02:38]} 34. Kg2 {[%emt 0:04:07]} Rd8 {[%emt 0:05:58]} 35. Kf2 {[%emt 0:02:04]} c5 {[%emt 0:02:41]} 36. Rd2 {[%emt 0:00:50]} Qb6 {[%emt 0:02:09]} 37. Nc3 {[%emt 0:01:52]} Nxc3 {[%emt 0:00:18]} 0-1

[Event "FIDE WSTC Open 65 2025"]
[Site "Prague"]
[Date "2025.02.19"]
[Round "3.21"]
[White "Knaak, Rainer"]
[Black "Heinig, Wolfram"]
[Result "1-0"]
[Annotator "TA"]
[ECO "A90"]
[WhiteElo "2464"]
[BlackElo "2204"]
[PlyCount "108"]
[EventDate "2025.02.17"]
[EventType "team-tourn"]
[EventCountry "CZE"]
[SourceTitle "playchess.com"]
[Source "ChessBase"]
[SourceQuality "1"]
[TimeControl "40/5400+30:1800+30"]

{[%evp 17,108,13,11,14,31,25,23,8,22,18,16,10,9,-10,-12,-48,-55,-86,-42,-33,-18,-43,-19,-22,34,33,53,51,50,10,12,6,23,-29,16,3,8,7,18,8,20,10,37,37,36,18,6,17,29,0,0,4,18,5,22,3,9,0,0,0,0,-10,-10,-10,-8,-8,8,8,8,9,24,22,23,25,68,60,101,94,175,174,165,161,161,148,161,161,169,161,171,58,50,89,837]} 1. d4 {[%emt 0:00:06]} f5 {[%emt 0:00:31]} 2. g3 {[%emt 0:00:21]} Nf6 {[%emt 0:00:24]} 3. Bg2 {[%emt 0:00:08]} e6 {[%emt 0:00:27]} 4. Nf3 {[%emt 0:01:17][%cal Bg1f3,Bf3e5,Be5c4][%mdl 32]} d5 {[%emt 0:00:50]} 5. O-O {[%emt 0:00:09]} Bd6 {[%emt 0:00:25]} 6. c4 {[%emt 0:00:16]} c6 {[%emt 0:00:29]} 7. b3 {[%emt 0:02:06]} Qe7 {[%emt 0:00:52]} 8. Ne5 {[%emt 0:07:13]} O-O {[%emt 0:01:37]} 9. Qc2 {[%emt 0:01:55]} b6 {[%emt 0:03:52]} 10. cxd5 {[%emt 0:02:18] A90: Dutch Defence: Miscellaneous and Modern Stonewall (with ...Bd6).} cxd5 {[%emt 0:03:33]} 11. Nc4 {[%emt 0:02:56]} Qc7 {[%emt 0:15:35]} 12. Nba3 {[%emt 0:03:50] White has an edge.} Ba6 {[%emt 0:24:58] Repels Nb5} 13. Nxd6 {[%emt 0:13:22]} Qxd6 {[%emt 0:00:11]} 14. Qb2 {[%emt 0:03:28]} Nc6 {[%emt 0:03:28]} 15. Bf4 {[%emt 0:06:14]} Qe7 {[%emt 0:01:05]} 16. Nb1 $146 {[%emt 0:01:50]} ({Predecessor:} 16. Rfd1 Rac8 17. f3 Rfd8 18. Nb1 Nh5 19. Be3 e5 20. dxe5 d4 21. Bf2 Qxe5 22. f4 Qxe2 {½-½ Hoffman,A (2445)-Caruana Font de Mora,R (2345) Javea 1992 (7)}) 16... Rac8 {[%emt 0:02:15]} 17. a3 {[%emt 0:00:31]} Ne4 {[%emt 0:04:50]} 18. f3 {[%emt 0:01:59]} Nf6 {[%emt 0:01:34] Excellent horsemanship.} 19. Re1 {[%emt 0:02:06]} Nh5 {[%emt 0:02:32] And now ...Nxf4 would win.} 20. Bd2 {[%emt 0:00:41]} Qf6 {[%emt 0:02:34]} (20... f4 $11 21. g4 Nf6) 21. Bc3 $1 $14 {[%emt 0:04:21]} Qh6 {[%emt 0:00:55]} 22. e3 $1 {[%emt 0:01:50]} Nf6 {[%emt 0:01:20]} 23. Nd2 {[%emt 0:14:00]} Rf7 {[%emt 0:01:05]} 24. Rac1 {[%emt 0:04:16]} Rfc7 {[%emt 0:00:41]} 25. Nb1 {[%emt 0:02:35]} (25. a4 $142) 25... Na5 {[%emt 0:05:01]} 26. Bd2 {[%emt 0:03:50] The position is symmetric and equal} Rxc1 {[%emt 0:02:49]} 27. Rxc1 {[%emt 0:00:10]} Rxc1+ {[%emt 0:00:33]} 28. Bxc1 {[%emt 0:00:04]} Qh5 {[%emt 0:01:22]} 29. Bd2 {[%emt 0:00:55]} Nc6 {[%emt 0:01:27]} 30. Qc2 {[%emt 0:03:39]} Qe8 {[%emt 0:00:31]} 31. Nc3 {[%emt 0:00:39]} Qc8 {[%emt 0:04:47]} 32. Nd1 {[%emt 0:00:46]} Ne7 {[%emt 0:01:29]} 33. Qxc8+ {[%emt 0:00:29]} Nxc8 {[%emt 0:00:03]} 34. Nb2 {[%emt 0:00:52]} Kf7 {[%emt 0:00:47]} 35. Kf2 {[%emt 0:01:48]} Ke7 {[%emt 0:03:12]} 36. Ke1 {[%emt 0:00:15]} Kd7 {[%emt 0:00:23]} 37. Bc3 {[%emt 0:01:44]} g5 {[%emt 0:01:18]} 38. Kd2 {[%emt 0:02:31]} g4 {[%emt 0:01:49]} 39. Nd3 {[%emt 0:00:19]} Bxd3 {[%emt 0:00:40]} 40. Kxd3 {[%emt 0:00:05]} gxf3 {[%emt 0:00:19]} 41. Bxf3 $11 {[%emt 0:30:06][%mdl 4096] Endgame KBB-KNN} Nd6 {[%emt 0:30:22]} 42. Be1 {[%emt 0:02:04]} h5 {[%emt 0:07:11]} 43. Ke2 {[%emt 0:00:43]} Ng4 {[%emt 0:00:00]} 44. h3 {[%emt 0:00:00]} Nf6 {[%emt 0:00:00]} 45. Bg2 {[%emt 0:00:00]} a5 {[%emt 0:00:00]} 46. Kf3 {[%emt 0:00:00]} Kc6 {[%emt 0:00:00]} 47. Kf4 {[%emt 0:00:00] and Ke5 would now be decisive} Nf7 {[%emt 0:00:00] [#]} (47... Nde4 $16) 48. Bf3 $1 $18 {[%emt 0:00:00]} Kd7 {[%emt 0:00:00]} 49. Be2 {[%emt 0:00:00]} Kc6 {[%emt 0:00:00]} 50. b4 {[%emt 0:00:00]} axb4 {[%emt 0:00:00]} 51. Bxb4 {[%emt 0:00:00]} Kd7 {[%emt 0:05:28] Wards off Be7} 52. Bb5+ {[%emt 0:00:03]} Kd8 {[%emt 0:00:01] [#]} 53. Bf8 {[%emt 0:00:03]} (53. Bd3 $1 $18) 53... Nh7 $14 54. Bg7 {[%emt 0:00:01]} Nhg5 $2 {[%emt 0:00:11][%mdl 8192] Weighted Error Value: White=0.12 (very precise) /Black=0.13 (very precise)   Loses game:     	---       	Black=1      Mistake:       	White=2     	Black=2      Inaccurate:     	White=3     	Black=5      OK:         	White=15    	Black=15     Best:        	---       	Black=1      Strong:       	White=3     	---} (54... Ke7 $16) 1-0

[Event "FIDE WSTC Open 65 2025"]
[Site "Prague"]
[Date "2025.02.19"]
[Round "3.22"]
[White "Volkmer, Andreas"]
[Black "Jussupow, Artur"]
[Result "0-1"]
[Annotator "TA"]
[ECO "C01"]
[WhiteElo "2173"]
[BlackElo "2559"]
[PlyCount "82"]
[EventDate "2025.02.17"]
[EventType "team-tourn"]
[EventCountry "CZE"]
[SourceTitle "playchess.com"]
[Source "ChessBase"]
[SourceQuality "1"]
[TimeControl "40/5400+30:1800+30"]

{[%evp 10,82,16,16,22,15,24,5,6,10,23,22,18,17,24,11,4,14,8,13,2,10,11,0,0,0,9,0,2,-39,-45,-39,-42,-34,-34,-55,-31,-49,-54,-68,-74,-78,-75,-75,-54,-62,-55,-62,-43,-100,-96,-174,-172,-158,-144,-178,-179,-308,-14,-29,68,-207,-209,-677,-676,-657,-657,-714,-550,-550,-550,-550,-493,-486,-475]} 1. e4 {[%emt 0:00:15]} e6 {[%emt 0:00:10]} 2. Nf3 {[%emt 0:00:47]} d5 {[%emt 0:00:23]} 3. Nc3 {[%emt 0:00:11]} Nf6 {[%emt 0:02:46]} 4. exd5 {[%emt 0:01:28]} exd5 {[%emt 0:05:03]} 5. d4 {[%emt 0:00:06]} Be7 {[%emt 0:05:02]} 6. Bd3 {[%emt 0:05:29]} O-O {[%emt 0:25:36] C01: French: Exchange Variation.} 7. h3 {[%emt 0:17:53]} c5 {[%emt 0:00:00]} 8. dxc5 {[%emt 0:04:51]} Bxc5 {[%emt 0:00:00] The position is equal.} 9. O-O {[%emt 0:00:45]} Nc6 {[%emt 0:00:00]} 10. Bg5 {[%emt 0:06:17]} Be6 {[%emt 0:06:56]} 11. Qd2 {[%emt 0:06:39]} Re8 {[%emt 0:03:38]} 12. Qf4 {[%emt 0:14:36]} Be7 {[%emt 0:10:22] A sharp opening} 13. Nb5 $146 {[%emt 0:07:31]} ({Predecessor:} 13. Qd2 h6 14. Be3 Bb4 15. a3 Ne4 16. Bxe4 Bxc3 17. Bh7+ Kxh7 18. Qxc3 Qd7 19. Rad1 {½-½ Huerga Leache,M (2448)-Del Rio de Angelis,S (2457) Basque-ch Getxo 2019 (6)}) 13... h6 {[%emt 0:05:27]} 14. Bxf6 {[%emt 0:01:38]} Bxf6 {[%emt 0:00:07]} 15. c3 {[%emt 0:12:58]} (15. Nc7 {with more complications.} Bxb2 16. Rab1 Be5 17. Nxe6 Bxf4 18. Nxd8 Nxd8 19. Rb5) 15... Qb8 {[%emt 0:12:33]} 16. Qxb8 {[%emt 0:04:29]} Raxb8 {[%emt 0:00:11]} 17. Rfe1 {[%emt 0:00:28]} Re7 {[%emt 0:03:58]} 18. Rac1 {[%emt 0:01:54]} g6 {[%emt 0:03:11]} 19. Nfd4 {[%emt 0:04:02]} a6 {[%emt 0:02:51]} 20. Nxe6 {[%emt 0:00:17]} fxe6 {[%emt 0:01:13]} 21. Na3 {[%emt 0:00:28]} Kf7 {[%emt 0:00:50]} 22. Nc2 {[%emt 0:00:22]} b5 {[%emt 0:01:23]} 23. Kf1 {[%emt 0:03:05]} a5 {[%emt 0:02:02]} 24. Rb1 {[%emt 0:01:02]} b4 {[%emt 0:01:20]} 25. cxb4 {[%emt 0:00:04]} axb4 {[%emt 0:00:03]} 26. a3 {[%emt 0:01:38] White is weak on the dark squares} b3 {[%emt 0:04:17] Black plays on the queen side and is better} 27. Ne3 {[%emt 0:00:01]} Ne5 $36 {[%emt 0:00:06][%mdl 2048] Against Ng4. Black is more active.} 28. Be2 {[%emt 0:01:07]} Rc7 {[%emt 0:00:40]} 29. f4 {[%emt 0:01:51]} (29. Ng4 $15) 29... Nd7 $17 {[%emt 0:00:33]} 30. g4 {[%emt 0:01:04]} (30. Ng4 $17) 30... Nc5 $19 {[%emt 0:00:30]} 31. f5 {[%emt 0:00:04]} Ne4 {[%emt 0:01:18]} (31... gxf5 32. gxf5 Bh4 33. Red1 $15 (33. fxe6+ Kxe6 34. Bg4+ Ke5 $17)) 32. fxe6+ {[%emt 0:00:54]} Kxe6 {[%emt 0:00:01] Hoping for ...Nd2+.} 33. Kg2 {[%emt 0:00:46] [#]} (33. Bf3 $142 Nd2+ 34. Kg2 Nxf3 35. Kxf3) 33... Bg5 $2 {[%emt 0:01:05]} (33... Bh4 $1 $19 34. Bd3 Bxe1 35. Rxe1 Re8) 34. Bd3 $11 {[%emt 0:01:34][%cal Oe3d5]} Kd6 {[%emt 0:02:39] [#]} ({Better is} 34... Bxe3 $11 35. Rxe3 Ra8) 35. Nxd5 $2 {[%emt 0:00:41][%mdl 8192] Now White is beyond hope.} Rc2+ $19 {[%emt 0:00:14]} 36. Kf3 $2 {[%emt 0:00:42]} ({Wrong is} 36. Kg1 $2 Nd2 37. Nc3 Nf3+ 38. Kf1 Nxe1 39. Rxe1 Rf8+ (39... Rxb2 $2 40. Bxg6 Rf8+ 41. Bf5 $19) 40. Kg1 Rxb2 41. Ne4+ Kd7 42. Nxg5 hxg5 43. Bxg6 Kc7 44. Rc1+ Kb6 $19) (36. Bxc2 bxc2 37. Rbc1 Bxc1 (37... Kxd5 38. Rxc2 Rb3 39. Rd1+ Ke5 40. Re2 $11) 38. Rxc1 Kxd5 (38... Rxb2 39. Nb4 $11) 39. Rxc2) 36... Nd2+ {[%emt 0:00:13] Black is clearly winning.} 37. Kg3 {[%emt 0:00:05]} Nxb1 {[%emt 0:00:28]} 38. Nb4 {[%emt 0:00:25]} Rc1 {[%emt 0:00:19]} 39. Rxc1 {[%emt 0:01:00]} Bxc1 {[%emt 0:00:06]} 40. Bxb1 {[%emt 0:00:03]} Bxb2 {[%emt 0:00:09]} 41. Bxg6 {[%emt 0:30:25]} Bxa3 {[%emt 0:00:31] Weighted Error Value: White=0.31/Black=0.34  Loses game:     	White=1     	---        Missed win:     	---       	Black=1      Mistake:       	White=4     	Black=1      Inaccurate:     	White=1     	---        OK:         	White=14    	Black=15     Best:        	White=3     	Black=2} 0-1

[Event "FIDE WSTC Open 65 2025"]
[Site "Prague"]
[Date "2025.02.19"]
[Round "3.23"]
[White "Meister, Jakob"]
[Black "Schulz, Michael"]
[Result "1-0"]
[Annotator "RC"]
[ECO "A43"]
[WhiteElo "2418"]
[BlackElo "2115"]
[PlyCount "79"]
[EventDate "2025.02.17"]
[EventType "team-tourn"]
[EventCountry "CZE"]
[SourceTitle "playchess.com"]
[Source "ChessBase"]
[SourceQuality "1"]
[TimeControl "40/5400+30:1800+30"]

1. d4 {[%emt 0:00:12]} c5 {[%emt 0:00:17]} 2. d5 {[%emt 0:00:15]} Nf6 {[%emt 0:00:36]} 3. Nc3 {[%emt 0:00:36]} e6 {[%emt 0:02:25]} 4. e4 {[%emt 0:00:09]} d6 {[%emt 0:00:16]} 5. Bb5+ {[%emt 0:00:26]} Bd7 {[%emt 0:00:52]} 6. a4 {[%emt 0:02:46]} exd5 {[%emt 0:02:21]} 7. exd5 {[%emt 0:01:03]} Be7 {[%emt 0:00:57]} 8. Nge2 {[%emt 0:01:28]} O-O {[%emt 0:00:21]} 9. Ng3 {[%emt 0:00:13]} Re8 {[%emt 0:06:06]} 10. O-O {[%emt 0:00:25]} Bxb5 {[%emt 0:04:21]} 11. axb5 {[%emt 0:03:46]} Bf8 {[%emt 0:03:01]} 12. Bf4 {[%emt 0:09:19]} Nbd7 {[%emt 0:03:00]} 13. h3 {[%emt 0:05:09]} Nb6 {[%emt 0:02:12]} 14. Qf3 {[%emt 0:04:17]} Qd7 {[%emt 0:02:43]} 15. b3 {[%emt 0:12:53]} a6 {[%emt 0:12:23]} 16. bxa6 {[%emt 0:01:32]} Rxa6 {[%emt 0:01:48]} 17. Rad1 {[%emt 0:11:02]} Qc8 {[%emt 0:04:10]} 18. Nb5 {[%emt 0:01:46]} Nbd7 {[%emt 0:01:01]} 19. c4 {[%emt 0:15:07]} Ne5 {[%emt 0:00:44]} 20. Bxe5 {[%emt 0:00:29]} Rxe5 {[%emt 0:00:17]} 21. Rfe1 {[%emt 0:00:09]} Qe8 {[%emt 0:03:54]} 22. Qc3 {[%emt 0:00:46]} Rxe1+ {[%emt 0:00:24]} 23. Rxe1 {[%emt 0:00:20]} Qd7 {[%emt 0:00:17]} 24. Qf3 {[%emt 0:00:46]} Ra2 {[%emt 0:01:48]} 25. Nf5 {[%emt 0:01:46]} Qd8 {[%emt 0:07:59]} 26. Qg3 {[%emt 0:01:35]} Qa5 {[%emt 0:06:40]} 27. Nh6+ {[%emt 0:05:41]} Kh8 {[%emt 0:00:05]} 28. Nxf7+ {[%emt 0:00:07]} Kg8 {[%emt 0:00:04]} 29. Nh6+ {[%emt 0:00:10]} Kh8 {[%emt 0:00:06]} 30. Re6 {[%emt 0:00:11]} Rc2 {[%emt 0:02:13]} 31. Nf7+ {[%emt 0:00:32]} Kg8 {[%emt 0:00:06]} 32. Nh6+ {[%emt 0:00:11]} Kh8 {[%emt 0:00:04]} 33. Nf7+ {[%emt 0:02:29]} Kg8 {[%emt 0:00:05]} 34. Nbxd6 {[%emt 0:00:54]} Qa1+ {[%emt 0:02:00]} 35. Kh2 {[%emt 0:00:06]} g6 {[%emt 0:01:04]} 36. Qe5 {[%emt 0:02:35]} Qxe5+ {[%emt 0:00:45]} 37. Nxe5 {[%emt 0:00:24]} Rxf2 {[%emt 0:01:52]} 38. Nxb7 {[%emt 0:00:55]} Nh5 {[%emt 0:00:51]} 39. Nd3 {[%emt 0:00:34]} Rc2 {[%emt 0:03:26]} 40. d6 {[%emt 0:03:26]} 1-0

[Event "FIDE WSTC Open 65 2025"]
[Site "Prague"]
[Date "2025.02.19"]
[Round "3.24"]
[White "Raitza, Olaf"]
[Black "Koehler, Gerhard"]
[Result "0-1"]
[Annotator "ChessBase"]
[ECO "B92"]
[WhiteElo "2037"]
[BlackElo "2215"]
[PlyCount "44"]
[EventDate "2025.02.17"]
[EventType "team-tourn"]
[EventCountry "CZE"]
[SourceTitle "playchess.com"]
[Source "ChessBase"]
[SourceQuality "1"]
[TimeControl "40/5400+30:1800+30"]

1. e4 {[%emt 0:00:02]} c5 {[%emt 0:00:05]} 2. Nf3 {[%emt 0:00:08]} d6 {[%emt 0:00:10]} 3. d4 {[%emt 0:00:10]} cxd4 {[%emt 0:00:06]} 4. Nxd4 {[%emt 0:00:06]} Nf6 {[%emt 0:00:13]} 5. Nc3 {[%emt 0:00:35]} a6 {[%emt 0:00:15]} 6. Be2 {[%emt 0:00:35]} e5 {[%emt 0:00:29]} 7. Nb3 {[%emt 0:00:56]} Be7 {[%emt 0:00:24]} 8. O-O {[%emt 0:05:31]} Be6 {[%emt 0:03:14]} 9. f4 {[%emt 0:06:57]} b5 {[%emt 0:01:34]} 10. f5 {[%emt 0:05:46]} Bd7 {[%emt 0:01:04]} 11. Be3 {[%emt 0:05:49]} Bc6 {[%emt 0:03:01]} 12. Bf3 {[%emt 0:00:27]} Nbd7 {[%emt 0:01:17]} 13. Qe1 {[%emt 0:27:36]} O-O {[%emt 0:05:05]} 14. Rd1 {[%emt 0:06:40]} Rc8 {[%emt 0:01:35]} 15. a3 {[%emt 0:07:46]} Ba8 {[%emt 0:01:43]} 16. g4 {[%emt 0:03:09]} h6 {[%emt 0:00:33]} 17. Qf2 {[%emt 0:02:38]} Rxc3 {[%emt 0:01:52]} 18. bxc3 {[%emt 0:00:05]} Nxe4 {[%emt 0:00:09]} 19. Bxe4 {[%emt 0:06:35]} Bxe4 {[%emt 0:00:12]} 20. Qd2 {[%emt 0:05:33]} Ba8 {[%emt 0:13:38]} 21. h4 {[%emt 0:03:15]} Nf6 {[%emt 0:02:00]} 22. Qe2 {[%emt 0:02:33]} Ne4 {[%emt 0:00:51]} 0-1

[Event "FIDE WSTC Open 65 2025"]
[Site "Prague"]
[Date "2025.02.19"]
[Round "3.25"]
[White "Welling, Gerard"]
[Black "Ogaard, Leif"]
[Result "1/2-1/2"]
[Annotator "RC"]
[ECO "B40"]
[WhiteElo "2195"]
[BlackElo "2358"]
[PlyCount "113"]
[EventDate "2025.02.17"]
[EventType "team-tourn"]
[EventCountry "CZE"]
[SourceTitle "playchess.com"]
[Source "ChessBase"]
[SourceQuality "1"]
[TimeControl "40/5400+30:1800+30"]

1. e4 {[%emt 0:00:05]} c5 {[%emt 0:00:37]} 2. Nf3 {[%emt 0:01:20]} e6 {[%emt 0:00:18]} 3. d3 {[%emt 0:00:19]} Nc6 {[%emt 0:01:11]} 4. g3 {[%emt 0:00:11]} Nf6 {[%emt 0:01:11]} 5. Bg2 {[%emt 0:00:07]} Be7 {[%emt 0:00:23]} 6. O-O {[%emt 0:00:23]} O-O {[%emt 0:00:14]} 7. Qe2 {[%emt 0:03:51]} d6 {[%emt 0:03:43]} 8. c3 {[%emt 0:01:31]} Bd7 {[%emt 0:00:42]} 9. d4 {[%emt 0:02:24]} cxd4 {[%emt 0:00:46]} 10. cxd4 {[%emt 0:01:56]} d5 {[%emt 0:00:13]} 11. e5 {[%emt 0:00:41]} Ne4 {[%emt 0:00:10]} 12. Nc3 {[%emt 0:05:57]} Nxc3 {[%emt 0:01:25]} 13. bxc3 {[%emt 0:00:03]} Rc8 {[%emt 0:00:24]} 14. h4 {[%emt 0:02:08]} Na5 {[%emt 0:01:06]} 15. Qd3 {[%emt 0:04:00]} a6 {[%emt 0:02:16]} 16. Ng5 {[%emt 0:02:23]} g6 {[%emt 0:03:14]} 17. Re1 {[%emt 0:01:37]} Qc7 {[%emt 0:01:54]} 18. Re3 {[%emt 0:05:39]} Qc4 {[%emt 0:16:00]} 19. Qd1 {[%emt 0:07:14]} Qa4 {[%emt 0:04:17]} 20. Qxa4 {[%emt 0:18:03]} Bxa4 {[%emt 0:00:14]} 21. Bf1 {[%emt 0:00:35]} Nc4 {[%emt 0:02:04]} 22. Bxc4 {[%emt 0:05:16]} Rxc4 {[%emt 0:00:11]} 23. Nf3 {[%emt 0:01:03]} Rfc8 {[%emt 0:01:51]} 24. Bb2 {[%emt 0:00:42]} Bb5 {[%emt 0:00:42]} 25. Nd2 {[%emt 0:02:56]} Ra4 {[%emt 0:00:25]} 26. a3 {[%emt 0:04:31]} Rc6 {[%emt 0:01:58]} 27. f4 {[%emt 0:01:34]} h5 {[%emt 0:02:03]} 28. Kf2 {[%emt 0:00:20]} Rb6 {[%emt 0:02:41]} 29. Ke1 {[%emt 0:05:36]} Bc4 {[%emt 0:04:56]} 30. Bc1 {[%emt 0:02:07]} Rb5 {[%emt 0:00:34]} 31. Kd1 {[%emt 0:01:23]} Kf8 {[%emt 0:07:00]} 32. Kc2 {[%emt 0:04:43]} Ke8 {[%emt 0:01:56]} 33. Re1 {[%emt 0:02:25]} Kd7 {[%emt 0:05:05]} 34. Bb2 {[%emt 0:01:27]} Kc6 {[%emt 0:04:18]} 35. Re3 {[%emt 0:00:38]} Rba5 {[%emt 0:01:46]} 36. Nb3 {[%emt 0:00:22]} Bxb3+ {[%emt 0:00:54]} 37. Kxb3 {[%emt 0:00:03]} Rb5+ {[%emt 0:00:24]} 38. Kc2 {[%emt 0:00:55]} Rb6 {[%emt 0:07:51]} 39. Ree1 {[%emt 0:00:45]} Kb5 {[%emt 0:00:26]} 40. Reb1 {[%emt 0:05:01]} Kc4 {[%emt 0:01:29]} 41. Bc1 {[%emt 0:30:28]} Rxb1 {[%emt 0:30:17]} 42. Rxb1 {[%emt 0:00:02]} b5 {[%emt 0:00:28]} 43. Rb3 {[%emt 0:01:07]} a5 {[%emt 0:00:16]} 44. Bb2 {[%emt 0:00:25]} b4 {[%emt 0:01:22]} 45. cxb4 {[%emt 0:00:53]} axb4 {[%emt 0:00:10]} 46. axb4 {[%emt 0:00:18]} Bxb4 {[%emt 0:07:18]} 47. Rf3 {[%emt 0:00:06]} Ra7 {[%emt 0:08:38]} 48. Re3 {[%emt 0:01:41]} Rc7 {[%emt 0:01:17]} 49. Rf3 {[%emt 0:01:43]} Kb5+ {[%emt 0:00:00]} 50. Kb3 {[%emt 0:00:00]} Rc4 {[%emt 0:00:00]} 51. Rf1 {[%emt 0:00:00]} Ba5 {[%emt 0:00:00]} 52. Rd1 {[%emt 0:00:00]} Rb4+ {[%emt 0:00:00]} 53. Kc3 {[%emt 0:00:00]} Ra4+ {[%emt 0:00:00]} 54. Kb3 {[%emt 0:00:00]} Rc4 {[%emt 0:00:00]} 55. Rd3 {[%emt 0:00:00]} Rb4+ {[%emt 0:00:00]} 56. Kc2 {[%emt 0:00:00]} Rc4+ {[%emt 0:00:00]} 57. Kb3 {[%emt 0:00:00]} 1/2-1/2

[Event "FIDE WSTC Open 65 2025"]
[Site "Prague"]
[Date "2025.02.19"]
[Round "3.26"]
[White "Heim, Sverre"]
[Black "Prakken, Gerrit"]
[Result "1/2-1/2"]
[Annotator "RC"]
[ECO "E06"]
[WhiteElo "2312"]
[BlackElo "2155"]
[PlyCount "33"]
[EventDate "2025.02.17"]
[EventType "team-tourn"]
[EventCountry "CZE"]
[SourceTitle "playchess.com"]
[Source "ChessBase"]
[SourceQuality "1"]
[TimeControl "40/5400+30:1800+30"]

1. d4 {[%emt 0:00:09]} d5 {[%emt 0:00:12]} 2. Nf3 {[%emt 0:00:28]} e6 {[%emt 0:01:10]} 3. g3 {[%emt 0:00:21]} Nf6 {[%emt 0:00:50]} 4. Bg2 {[%emt 0:00:12]} Be7 {[%emt 0:00:35]} 5. c4 {[%emt 0:00:41]} O-O {[%emt 0:00:41]} 6. O-O {[%emt 0:00:08]} c6 {[%emt 0:01:37]} 7. Qc2 {[%emt 0:01:39]} b6 {[%emt 0:01:20]} 8. Nbd2 {[%emt 0:01:02]} Bb7 {[%emt 0:02:09]} 9. e4 {[%emt 0:01:18]} Na6 {[%emt 0:01:00]} 10. a3 {[%emt 0:05:58]} c5 {[%emt 0:02:57]} 11. exd5 {[%emt 0:06:43]} exd5 {[%emt 0:00:34]} 12. dxc5 {[%emt 0:05:22]} Nxc5 {[%emt 0:00:53]} 13. b4 {[%emt 0:00:57]} Ne6 {[%emt 0:10:23]} 14. cxd5 {[%emt 0:07:45]} Bxd5 {[%emt 0:02:26]} 15. Bb2 {[%emt 0:00:30]} Qc8 {[%emt 0:04:34]} 16. Qxc8 {[%emt 0:06:46]} Rfxc8 {[%emt 0:01:27]} 17. Rfc1 {[%emt 0:00:22]} 1/2-1/2